bitfinex-derivatives/quotes_ETHF0:USTF0_20250712
["timestamp","ask_amount","ask_price","bid_price","bid_amount"]
[1752328592703,0.9076,2941.1,2941.0,0.9435]
[1752328592904,4.07486081,2941.1,2941.0,5.1491]
[1752328593109,4.07486081,2941.1,2941.0,4.2056]
[1752328593404,6.44706081,2941.1,2941.0,4.2056]
[1752328594004,3.26623,2940.9,2940.8,4.2056]
[1752328594205,6.44711081,2940.9,2940.8,4.2056]
[1752328594405,6.44711081,2940.9,2940.8,4.88545]
[1752328594601,6.44711081,2940.9,2940.8,4.2056]
[1752328596113,3.26627,2940.7,2940.6,5.1491]
[1752328596414,3.39508081,2940.7,2940.6,5.82899]
[1752328596802,0.80868081,2940.7,2940.6,5.82899]
[1752328597209,0.80868081,2940.7,2940.6,8.00528017]
[1752328597809,0.67979,2941.1,2941.0,0.9435]
[1752328598008,0.67979,2941.1,2941.0,5.1491]
[1752328598009,1.48678763,2941.1,2941.0,5.1491]
[1752328598206,4.07318763,2941.1,2941.0,5.1491]
[1752328598600,4.07317768,2941.1,2941.0,5.1491]
[1752328599010,0.80699768,2941.1,2941.0,5.8289]
[1752328600611,0.80699768,2941.1,2941.0,5.1491]
[1752328600815,2.5864,2941.1,2941.0,5.8289]
[1752328601009,2.5864,2941.1,2941.0,5.1491]
[1752328601209,3.26618,2941.1,2941.0,5.1491]
[1752328601810,6.44582804,2941.1,2941.0,4.2056]
[1752328602015,3.26623,2940.9,2940.8,5.1491]
[1752328603014,0.67981,2941.0,2940.9,5.1491]
[1752328603214,3.26621,2941.0,2940.9,5.1491]
[1752328603611,5.57601,2941.0,2940.9,2.467]
[1752328603817,3.26627,2940.7,2940.6,5.126]
[1752328604319,0.67986,2940.8,2940.7,2.6313]
[1752328604513,3.36276,2940.8,2940.7,5.0752]
[1752328605013,3.36275,2940.8,2940.7,5.0752]
[1752328606918,3.36275,2940.8,2940.7,4.1317]
[1752328606919,5.67255,2940.8,2940.7,4.1317]
[1752328607209,5.69419,2940.6,2940.5,6.57274275]
[1752328607417,5.69419,2940.6,2940.5,4.1317]
[1752328609013,5.69419,2940.6,2940.5,5.1081]
[1752328609415,3.38439,2940.6,2940.5,5.1081]
[1752328611520,5.69419,2940.6,2940.5,4.1317]
[1752328612015,5.69419,2940.6,2940.5,2.4439]
[1752328612407,5.69419,2940.6,2940.5,4.1317]
[1752328613014,5.69419,2940.6,2940.5,5.1081]
[1752328613317,5.69419,2940.6,2940.5,4.1317]
[1752328613910,4.76509,2940.2,2940.1,4.88494275]
[1752328614114,5.69429,2940.2,2940.1,2.4439]
[1752328614310,0.68003,2940.0,2939.9,6.62524275]
[1752328614516,2.45533,2940.0,2939.9,10.75694275]
[1752328614717,3.38453,2940.0,2939.9,10.75694275]
[1752328615218,3.38453,2940.0,2939.9,8.3159]
[1752328615617,5.69433,2940.0,2939.9,7.3395]
[1752328616915,3.38453,2940.0,2939.9,8.3159]
[1752328617517,5.69433,2940.0,2939.9,8.3159]
[1752328618314,5.69433,2940.0,2939.9,4.1317]
[1752328619409,0.68008,2939.8,2939.7,0.9764]
[1752328619616,5.69438,2939.8,2939.7,2.4439]
[1752328620319,5.69438,2939.8,2939.7,4.1317]
[1752328621320,5.69438,2939.8,2939.7,5.1081]
[1752328621724,3.38458,2939.8,2939.7,5.1081]
[1752328623821,5.69438,2939.8,2939.7,2.4439]
[1752328624318,2.45545,2939.5,2939.4,2.6642]
[1752328624513,3.38465,2939.5,2939.4,5.1081]
[1752328626018,0.68012,2939.7,2939.6,1.6878]
[1752328626324,0.68012,2939.7,2939.6,5.1081]
[1752328626820,3.38462,2939.7,2939.6,5.1081]
[1752328627923,5.0143,2939.7,2939.6,4.1317]
[1752328628113,5.6944,2939.7,2939.6,4.1317]
[1752328629821,3.3846,2939.7,2939.6,5.1081]
[1752328630021,1.6093,2939.7,2939.6,5.1081]
[1752328630419,0.6801,2939.7,2939.6,5.1081]
[1752328631716,0.6801,2939.7,2939.6,5.78823]
[1752328631922,0.6801,2939.7,2939.6,5.1081]
[1752328632220,3.2078,2940.0,2939.7,3.4203]
[1752328632422,3.2078,2940.0,2939.9,5.52215602]
[1752328632728,3.2078,2940.0,2939.9,7.96605602]
[1752328632928,0.68002,2940.1,2940.0,5.1081]
[1752328633321,1.6092,2940.2,2940.0,1.6878]
[1752328633526,3.3845,2940.2,2940.1,5.2295]
[1752328634130,0.9292,2940.3,2940.2,4.95658]
[1752328634323,3.22336,2940.3,2940.2,5.253]
[1752328635628,0.67996,2940.3,2940.2,5.253]
[1752328636329,0.67995,2940.4,2940.3,5.2064]
[1752328636725,3.25155,2940.4,2940.3,5.2064]
[1752328639632,5.46895,2940.4,2940.3,4.2766]
[1752328640228,5.46895,2940.4,2940.3,2.5653]
[1752328640429,2.29421,2940.1,2940.0,5.2064]
[1752328640728,5.46901,2940.1,2940.0,4.2766]
[1752328640926,5.46901,2940.1,2940.0,5.2064]
[1752328641128,3.25161,2940.1,2940.0,5.2064]
[1752328641431,5.4252,2940.5,2940.0,2.6411]
[1752328641733,0.67996,2940.3,2940.2,5.2064]
[1752328643623,0.67996,2940.3,2940.2,8.4142]
[1752328645128,0.68003,2940.0,2939.9,2.6411]
[1752328645335,0.68003,2940.0,2939.9,5.2064]
[1752328645336,3.25163,2940.0,2939.9,5.2064]
[1752328646835,5.46903,2940.0,2939.9,4.2766]
[1752328647030,2.2174,2939.7,2939.3,2.44104275]
[1752328647235,5.4692,2939.3,2939.2,2.44104275]
[1752328647536,3.25182,2939.2,2939.1,4.2766]
[1752328647934,5.46924,2939.1,2939.0,4.15234275]
[1752328648132,2.29447,2939.0,2938.9,4.15234275]
[1752328648328,5.46927,2939.0,2938.9,4.2766]
[1752328649731,5.46927,2939.0,2938.9,5.2064]
[1752328650029,5.46927,2939.0,2938.9,4.2766]
[1752328650634,5.46927,2939.0,2938.9,5.2064]
[1752328651230,6.45957,2939.4,2939.3,1.7113]
[1752328651429,6.45957,2939.4,2939.3,5.2064]
[1752328651732,3.88797,2939.4,2939.3,5.2064]
[1752328652128,3.2078,2939.4,2939.3,5.2064]
[1752328652631,2.2943,2939.7,2939.6,4.2766]
[1752328652829,2.2943,2939.7,2939.6,5.2064]
[1752328653026,3.2517,2939.7,2939.6,5.2064]
[1752328653233,0.6801,2939.7,2939.6,5.2064]
[1752328653632,4.822,2940.2,2940.1,5.2064]
[1752328653832,9.46371998,2940.2,2940.1,4.2766]
[1752328654832,2.29423,2940.0,2939.9,4.2766]
[1752328655035,6.25595998,2940.0,2939.9,4.2766]
[1752328655432,5.44043,2939.6,2939.5,4.2766]
[1752328656739,3.25173,2939.6,2939.5,5.2064]
[1752328658340,5.44043,2939.6,2939.5,4.2766]
[1752328659636,5.44043,2939.6,2939.5,5.2064]
[1752328661145,3.25173,2939.6,2939.5,5.2064]
[1752328672351,2.2464,2939.3,2939.2,2.6191]
[1752328672546,0.6802,2939.3,2939.2,5.0773]
[1752328673852,0.68019,2939.4,2939.3,5.0773]
[1752328674850,3.17659,2939.4,2939.3,5.0773]
[1752328683263,8.53079,2939.4,2939.3,4.0824]
[1752328683451,8.53079,2939.4,2939.3,5.0773]
[1752328684660,3.17664,2939.1,2939.0,5.0773]
[1752328684853,5.32304,2939.1,2939.0,5.0773]
[1752328685261,3.17664,2939.1,2939.0,5.0773]
[1752328687055,8.53084,2939.1,2939.0,5.0773]
[1752328687260,4.39291,2938.8,2938.7,2.6191]
[1752328687463,5.32311,2938.8,2938.7,2.6191]
[1752328687864,5.32311,2938.8,2938.7,5.0773]
[1752328688168,5.32311,2938.8,2938.7,4.0824]
[1752328688767,5.32311,2938.8,2938.7,5.0773]
[1752328691566,3.1768,2938.4,2938.3,8.2851]
[1752328691757,1.6106,2938.4,2938.3,8.2851]
[1752328691961,0.6804,2938.4,2938.3,8.2851]
[1752328695567,1.5935,2938.4,2938.3,8.2851]
[1752328698469,0.6804,2938.4,2938.3,8.2851]
[1752328700468,1.5935,2938.4,2938.3,8.2851]
[1752328701667,1.5935,2938.4,2938.3,9.3741949]
[1752328701871,0.6804,2938.4,2938.3,9.3741949]
[1752328702972,2.33224,2939.1,2939.0,5.0931]
[1752328703361,0.68023,2939.2,2939.0,1.6423]
[1752328703665,0.68023,2939.2,2939.1,5.0931]
[1752328703865,1.49439135,2939.2,2939.1,5.0931]
[1752328704060,0.68023,2939.2,2939.1,5.0931]
[1752328704261,3.2078,2939.4,2939.2,5.77332]
[1752328704571,3.24526,2939.5,2939.4,5.0931]
[1752328704764,4.05949161,2939.5,2939.4,5.0931]
[1752328704966,3.24526,2939.5,2939.4,5.0931]
[1752328708885,5.30206,2939.5,2939.4,4.1098]
[1752328709174,6.3911549,2939.5,2939.4,4.1098]
[1752328709675,5.3021,2939.3,2939.2,4.1098]
[1752328709872,6.3911949,2939.3,2939.2,5.0931]
[1752328710176,5.3021,2939.3,2939.2,5.0931]
[1752328710472,6.3911949,2939.3,2939.2,2.4675]
[1752328710674,3.24546,2938.6,2938.5,6.55084275]
[1752328710879,3.24546,2938.6,2938.5,5.0931]
[1752328712475,2.5651,2938.6,2938.5,5.0931]
[1752328712675,3.2078,2938.8,2938.7,5.77343]
[1752328712874,3.2078,2938.8,2938.7,6.8625249]
[1752328713768,3.88811,2938.8,2938.7,6.1821949]
[1752328713973,3.88811,2938.8,2938.7,5.0931]
[1752328714576,0.68031,2938.8,2938.7,5.0931]
[1752328714770,0.6803,2938.9,2938.8,5.0931]
[1752328715176,3.2454,2938.9,2938.8,5.0931]
[1752328721083,5.2404,2938.9,2938.8,5.0931]
[1752328722983,5.2404,2938.9,2938.8,4.1098]
[1752328723575,5.21428,2938.5,2938.4,4.9934]
[1752328723782,3.24548,2938.5,2938.4,4.9934]
[1752328727988,1.59348,2938.5,2938.4,4.9934]
[1752328728182,0.68038,2938.5,2938.4,4.9934]
[1752328728583,0.68037,2938.6,2938.4,4.9934]
[1752328728784,0.9005,2938.6,2938.5,4.9232]
[1752328728985,1.58086,2938.6,2938.5,4.9232]
[1752328729288,8.42877,2939.0,2938.9,4.9232]
[1752328729483,9.25616284,2939.0,2938.9,4.9232]
[1752328730584,4.07956284,2939.0,2938.9,4.9232]
[1752328730785,3.25217,2939.0,2938.9,4.9232]
[1752328733891,5.22097,2939.0,2938.9,4.9232]
[1752328737891,3.25217,2939.0,2938.9,4.9232]
[1752328738394,6.04936737,2939.0,2938.9,4.9232]
[1752328740389,7.13846227,2939.0,2938.9,4.9232]
[1752328740587,7.13889853,2939.0,2938.9,4.9232]
[1752328741494,6.04980363,2939.0,2938.9,4.9232]
[1752328743093,4.08100363,2939.0,2938.9,4.9232]
[1752328743691,4.08036247,2939.0,2938.9,4.9232]
[1752328743893,4.08036672,2939.0,2938.9,4.9232]
[1752328745593,6.04916672,2939.0,2938.9,4.9232]
[1752328746703,4.08036672,2939.0,2938.9,4.9232]
[1752328747902,1.50846672,2939.0,2938.9,6.0122949]
[1752328748107,0.68027,2939.0,2938.9,4.9232]
[1752328748303,3.25217,2939.0,2938.9,4.9232]
[1752328752010,5.22097,2939.0,2938.9,4.9232]
[1752328752711,5.22097,2939.0,2938.9,2.3678]
[1752328753108,5.22097,2939.0,2938.9,4.9232]
[1752328757515,5.22097,2939.0,2938.9,3.9357]
[1752328759513,5.22097,2939.0,2938.9,4.8724]
[1752328759714,0.68027,2939.0,2938.9,4.8724]
[1752328760020,1.65957,2939.0,2938.9,4.8724]
[1752328761018,0.68027,2939.0,2938.9,4.8724]
[1752328761620,1.65953,2939.2,2939.0,4.9019]
[1752328761918,0.68023,2939.2,2939.1,4.9019]
[1752328764023,3.88802,2939.3,2939.1,4.9019]
[1752328764223,0.68022,2939.3,2939.2,3.3931]
[1752328764424,0.68019,2939.4,2939.2,1.5088]
[1752328764723,0.68019,2939.4,2939.3,4.9019]
[1752328764918,1.51003961,2939.4,2939.3,4.9019]
[1752328766724,0.68019,2939.4,2939.3,4.9019]
[1752328767329,3.49801575,2939.9,2939.8,2.4455]
[1752328767523,3.10674471,2939.9,2939.8,4.9019]
[1752328768027,3.25636,2939.9,2939.8,4.9019]
[1752328768217,0.9793,2939.9,2939.8,4.9019]
[1752328768420,0.9793,2940.1,2939.8,4.9019]
[1752328768620,3.25635,2940.0,2939.9,4.9019]
[1752328769823,2.5763,2940.0,2939.9,4.9019]
[1752328770022,3.25634,2940.0,2939.9,4.9019]
[1752328775130,5.13864,2940.0,2939.9,3.9652]
[1752328776026,5.13864,2940.0,2939.9,4.9019]
[1752328777027,3.25634,2940.0,2939.9,4.9019]
[1752328777235,0.9793,2940.2,2939.9,4.9019]
[1752328777427,0.68004,2940.0,2939.9,3.9652]
[1752328778133,0.68004,2940.0,2939.9,4.9019]
[1752328778636,1.6593,2940.2,2940.1,1.5088]
[1752328778934,3.2563,2940.2,2940.1,4.9019]
[1752328782837,5.0648,2940.2,2940.1,4.9019]
[1752328783138,6.1538949,2940.2,2940.1,3.9652]
[1752328783937,6.1538949,2940.2,2940.1,2.4564]
[1752328784135,3.16844,2940.0,2939.9,4.6988]
[1752328786238,0.00249181,2940.1,2940.0,4.6853]
[1752328786640,0.00249181,2940.1,2940.0,5.36534]
[1752328787338,0.00249181,2940.1,2940.0,4.6853]
[1752328787727,0.68250181,2940.1,2940.0,4.6853]
[1752328787928,3.11500181,2940.1,2940.0,4.6853]
[1752328789938,1.60590181,2940.1,2940.0,4.6853]
[1752328790136,0.00249181,2940.1,2940.0,5.36534]
[1752328790442,0.68250181,2940.1,2940.0,4.6853]
[1752328790642,0.00249181,2940.1,2940.0,5.36534]
[1752328790844,0.68250181,2940.1,2940.0,4.6853]
[1752328791243,0.68250181,2940.1,2940.0,5.36534]
[1752328791444,0.00249181,2940.1,2940.0,5.36534]
[1752328791747,0.68250181,2940.1,2940.0,4.6853]
[1752328792244,0.00249181,2940.1,2940.0,5.36534]
[1752328792643,0.68250181,2940.1,2940.0,5.36534]
[1752328792848,0.00249181,2940.1,2940.0,5.36534]
[1752328793041,0.68250181,2940.1,2940.0,5.36534]
[1752328793342,0.00249181,2940.1,2940.0,5.36534]
[1752328793847,0.00249181,2940.1,2940.0,10.36534]
[1752328794642,0.67993,2940.5,2940.3,2.24957]
[1752328794839,6.32015,2940.8,2940.7,4.6853]
[1752328795041,7.14897823,2940.8,2940.7,4.6853]
[1752328796945,6.46912823,2940.8,2940.7,4.6853]
[1752328797145,0.82882823,2940.8,2940.7,5.36517]
[1752328797443,4.7169,2941.1,2941.0,4.6853]
[1752328797648,6.46997281,2941.1,2941.0,4.6853]
[1752328798140,5.54657281,2941.1,2941.0,5.36511]
[1752328798346,0.82967281,2941.1,2941.0,6.4542049]
[1752328798546,5.6403,2941.4,2941.3,1.5696]
[1752328798751,6.46976477,2941.4,2941.3,4.6853]
[1752328799846,6.46976477,2941.4,2941.3,5.36504]
[1752328799847,4.03726477,2941.4,2941.3,5.36504]
[1752328800053,4.1312,2941.4,2941.3,5.36504]
[1752328800243,0.9234,2941.4,2941.3,5.36504]
[1752328800747,0.9234,2941.4,2941.3,4.6853]
[1752328800956,3.11221,2941.4,2941.3,4.6853]
[1752328801151,5.9985049,2941.4,2941.3,4.6853]
[1752328801454,5.3187949,2941.4,2941.3,3.7621]
[1752328801853,5.9985049,2941.4,2941.3,3.7621]
[1752328802153,2.4325,2941.4,2941.3,4.6853]
[1752328802347,3.11221,2941.4,2941.3,4.6853]
[1752328802652,4.7169,2941.7,2940.9,3.2078]
[1752328802853,2.5981949,2941.5,2941.4,2.4928]
[1752328803048,1.5091,2941.5,2941.4,4.6853]
[1752328803250,2.4325,2941.5,2941.4,5.36501]
[1752328803549,0.9234,2941.5,2941.4,5.36501]
[1752328804445,0.9234,2941.5,2941.4,4.6853]
[1752328804645,2.4325,2941.5,2941.4,4.6853]
[1752328804846,2.4325,2941.5,2941.4,5.36501]
[1752328805146,4.2297,2941.5,2941.4,4.6853]
[1752328805347,5.3187949,2941.5,2941.2,3.2078]
[1752328805553,2.7206,2941.2,2941.1,2.1925]
[1752328805752,4.2297,2941.2,2941.1,2.1925]
[1752328805953,4.90946,2941.2,2941.1,2.1925]
[1752328807049,4.2297,2941.2,2941.1,2.1925]
[1752328807250,4.2297,2941.2,2941.1,4.6853]
[1752328807457,4.90946,2941.2,2941.1,4.6853]
[1752328807754,2.7206,2941.2,2940.9,2.1925]
[1752328807953,5.9986249,2941.0,2940.9,2.1925]
[1752328808747,2.7206,2940.8,2940.7,3.7621]
[1752328808947,2.7206,2940.8,2940.7,4.6853]
[1752328808948,4.90955,2940.8,2940.7,4.6853]
[1752328809655,4.90955,2940.8,2940.7,3.7621]
[1752328810057,4.2297,2940.6,2940.5,3.7621]
[1752328810255,5.9986949,2940.6,2940.5,3.7621]
[1752328810457,5.9986949,2940.6,2940.5,2.1925]
[1752328811052,4.90964,2940.4,2940.3,2.1925]
[1752328811359,2.4325,2940.1,2940.0,5.7006]
[1752328811858,3.11251,2940.1,2940.0,7.8931]
[1752328814053,2.18911,2940.1,2940.0,7.8931]
[1752328814360,3.11251,2940.1,2940.0,7.8931]
[1752328815760,4.82621,2940.1,2940.0,7.8931]
[1752328815958,3.11251,2940.1,2940.0,7.8931]
[1752328816561,3.11251,2940.1,2940.0,4.6853]
[1752328817056,4.82621,2940.1,2940.0,3.7621]
[1752328818158,2.4325,2940.1,2940.0,4.6972]
[1752328818459,3.11251,2940.1,2940.0,4.6972]
[1752328818855,2.4325,2940.1,2940.0,5.7862949]
[1752328819063,1.60341,2940.1,2940.0,5.7862949]
[1752328819360,3.19461,2940.1,2940.0,4.6972]
[1752328825663,0.68001,2940.1,2940.0,5.7862949]
[1752328826663,1.61421,2940.1,2940.0,5.7862949]
[1752328827265,0.68001,2940.1,2940.0,5.7862949]
[1752328827466,1.61421,2940.1,2940.0,4.6972]
[1752328827668,0.68001,2940.1,2940.0,5.7862949]
[1752328828165,6.62119,2940.7,2940.0,5.8664949]
[1752328828365,0.67998,2940.3,2940.2,2.5374949]
[1752328828565,0.67998,2940.3,2940.2,5.6319949]
[1752328829369,0.67998,2940.3,2940.2,6.3119849]
[1752328829569,0.67998,2940.3,2940.2,5.6319949]
[1752328829773,0.67998,2940.3,2940.2,6.3119849]
[1752328830266,3.46127206,2941.0,2940.7,1.4484]
[1752328830472,3.20525,2940.8,2940.7,1.4484]
[1752328830874,3.20525,2940.8,2940.7,2.3835]
[1752328831075,1.61405,2940.8,2940.7,4.5429]
[1752328831476,3.20525,2940.8,2940.7,4.5429]
[1752328832265,2.5254,2940.8,2940.7,4.5429]
[1752328832475,3.20525,2940.8,2940.7,4.5429]
[1752328832676,4.91895,2940.8,2940.7,3.6078]
[1752328832880,3.20537,2940.3,2940.2,4.5429]
[1752328833079,4.91907,2940.3,2940.2,4.5429]
[1752328833279,4.2391,2940.3,2940.2,4.5429]
[1752328833483,2.5254,2940.3,2940.2,5.22289]
[1752328833781,0.9342,2940.3,2940.2,6.3119849]
[1752328833982,0.9342,2940.3,2940.2,5.6319949]
[1752328834182,4.91907,2940.3,2940.2,3.6078]
[1752328834374,0.68001,2940.1,2940.0,2.3835]
[1752328834576,4.91911,2940.1,2940.0,3.6078]
[1752328834977,2.27126,2939.9,2939.8,6.8029]
[1752328835175,2.5254,2939.9,2939.8,6.8392]
[1752328835378,3.20546,2939.9,2939.8,4.5429]
[1752328835775,2.5254,2939.9,2939.8,4.5429]
[1752328836285,3.20546,2939.9,2939.8,4.5429]
[1752328836681,4.91916,2939.9,2939.8,4.5429]
[1752328837282,4.2391,2939.9,2939.8,4.5429]
[1752328837482,4.91916,2939.9,2939.8,4.5429]
[1752328837687,4.2391,2939.9,2939.8,4.5429]
[1752328837880,2.5254,2939.9,2939.8,4.5429]
[1752328838087,3.20546,2939.9,2939.8,4.5429]
[1752328838289,4.9192,2939.7,2939.6,10.4112]
[1752328838477,6.0082949,2939.7,2939.6,10.4112]
[1752328838676,4.9192,2939.7,2939.6,11.3463]
[1752328839187,4.9192,2939.7,2939.6,10.4112]
[1752328839388,4.9192,2939.7,2939.6,6.2414]
[1752328839978,9.2160949,2939.7,2939.6,4.082]
[1752328840488,0.68017,2939.4,2939.3,3.6078]
[1752328840789,3.20557,2939.4,2939.3,4.5429]
[1752328841682,4.91927,2939.4,2939.3,4.5429]
[1752328842287,4.91927,2939.4,2939.3,3.6078]
[1752328842487,3.20557,2939.4,2939.3,4.5429]
[1752328843393,0.68015,2939.6,2939.3,2.5374949]
[1752328843587,3.20555,2939.6,2939.5,1.4484]
[1752328843792,3.20555,2939.6,2939.5,4.5963]
[1752328845488,0.68015,2939.6,2939.5,4.5963]
[1752328845693,3.12456,2939.9,2939.8,4.5696]
[1752328845895,3.95120545,2939.9,2939.8,4.5696]
[1752328846394,3.12456,2939.9,2939.8,4.5696]
[1752328848796,4.74796,2939.9,2939.8,3.6626]
[1752328848995,5.8370549,2939.9,2939.8,3.6626]
[1752328849499,1.5379,2939.6,2939.5,2.3568]
[1752328849697,5.8371249,2939.6,2939.5,4.5696]
[1752328850089,5.8371249,2939.6,2939.5,2.2128]
[1752328850294,3.12467,2939.4,2939.3,4.5696]
[1752328851294,2.7124949,2939.6,2939.5,1.4498]
[1752328851295,0.68014,2939.6,2939.5,1.4498]
[1752328851595,0.68014,2939.6,2939.5,4.7516949]
[1752328851997,0.68014,2939.6,2939.5,5.6586949]
[1752328852192,0.9066,2939.8,2939.5,3.4458949]
[1752328852391,3.12453,2940.0,2939.9,4.5696]
[1752328855995,4.2136249,2940.0,2939.9,4.5696]
[1752328856202,5.8370249,2940.0,2939.9,3.6626]
[1752328856908,5.8370249,2940.0,2939.7,2.2128]
[1752328856909,1.5379,2939.8,2939.7,2.2128]
[1752328857108,5.8370749,2939.8,2939.7,2.2128]
[1752328857300,3.12465,2939.5,2939.4,4.5696]
[1752328857500,4.2137449,2939.5,2939.4,4.5696]
[1752328857900,3.12465,2939.5,2939.4,4.5696]
[1752328858201,3.2078,2939.8,2939.4,4.5696]
[1752328858503,1.58675,2939.6,2939.5,4.5696]
[1752328859100,0.68011,2939.7,2939.5,5.24974]
[1752328859300,3.12456,2939.9,2939.8,4.5696]
[1752328860601,2.21803,2939.6,2939.5,4.5696]
[1752328860906,4.2137249,2939.6,2939.5,4.5696]
[1752328861106,3.12463,2939.6,2939.5,4.5696]
[1752328861609,0.68013,2939.6,2939.5,4.5696]
[1752328862509,3.12463,2939.6,2939.5,4.5696]
[1752328864009,0.68012,2939.7,2939.6,4.5696]
[1752328864202,0.9066,2939.9,2939.6,1.4498]
[1752328864203,0.6801,2939.8,2939.6,1.4498]
[1752328864406,0.6801,2939.8,2939.7,4.5696]
[1752328864598,1.50683164,2939.8,2939.7,4.5696]
[1752328864803,1.50681164,2939.8,2939.7,4.5696]
[1752328865405,3.95131164,2939.8,2939.7,4.5696]
[1752328865903,3.12458,2939.8,2939.7,4.5696]
[1752328867309,3.95168721,2939.8,2939.7,4.5696]
[1752328869311,6.66418211,2939.8,2939.7,4.5696]
[1752328869610,6.66418211,2939.8,2939.7,3.6626]
[1752328871715,5.04078211,2939.8,2939.7,4.5696]
[1752328872705,3.95168721,2939.8,2939.7,4.5696]
[1752328872917,2.41378721,2939.8,2939.7,4.5696]
[1752328873311,0.82710721,2939.8,2939.7,4.5696]
[1752328873510,1.50718721,2939.8,2939.7,4.5696]
[1752328873910,0.68008,2939.8,2939.7,4.5696]
[1752328875111,2.98258,2939.8,2939.7,4.5696]
[1752328876013,4.0716749,2939.8,2939.7,4.5696]
[1752328876509,5.6224749,2939.8,2939.7,4.5696]
[1752328876815,4.53338,2939.8,2939.7,4.5696]
[1752328877118,5.36069118,2939.8,2939.7,4.5696]
[1752328877319,10.74645484,2939.8,2939.7,2.2128]
[1752328877518,2.076,2939.7,2939.6,6.4769]
[1752328877719,5.44561118,2939.7,2939.6,6.4769]
[1752328878015,5.44561118,2939.7,2939.6,4.3814]
[1752328880309,5.44561118,2939.7,2939.6,6.4769]
[1752328880521,5.44561118,2939.7,2939.6,7.9471]
[1752328881920,3.89481118,2939.7,2939.6,8.9259]
[1752328883216,7.10261118,2939.7,2939.6,8.9259]
[1752328883722,8.65341118,2939.7,2939.6,6.4769]
[1752328884916,8.65341118,2939.7,2939.6,4.3814]
[1752328887018,8.65341118,2939.7,2939.6,1.44592]
[1752328887218,8.65341118,2939.7,2939.6,0.8504]
[1752328890619,0.68015,2939.5,2939.4,2.7216]
[1752328890818,5.24551366,2939.5,2939.4,2.7216]
[1752328891016,7.62362484,2939.5,2939.4,2.7216]
[1752328892022,0.6802,2939.3,2939.1,5.4559]
[1752328892326,0.6802,2939.3,2939.2,4.5445]
[1752328897528,3.0676,2939.3,2939.2,4.5445]
[1752328897731,1.6717,2939.3,2939.2,4.5445]
[1752328897930,0.6802,2939.3,2939.2,6.9261]
[1752328900135,1.6717,2939.3,2939.2,6.9261]
[1752328900634,0.6802,2939.3,2939.2,6.9261]
[1752328901639,6.40143476,2939.3,2939.2,4.4771]
[1752328901831,7.23025947,2939.3,2939.2,4.4771]
[1752328902029,7.23025947,2939.3,2939.2,5.9473]
[1752328902937,7.23025947,2939.3,2939.2,4.4771]
[1752328903836,7.23025947,2939.3,2939.2,2.3816]
[1752328906042,54.30925947,2939.3,2939.2,2.3816]
[1752328908646,54.30925947,2939.3,2939.2,1.58269]
[1752328908851,4.23074,2939.1,2939.0,3.9974]
[1752328909050,10.34669947,2939.1,2939.0,3.9974]
[1752328909249,5.22109,2938.9,2938.8,4.6626]
[1752328909457,53.38212476,2938.9,2938.8,3.685]
[1752328909745,54.21068486,2938.9,2938.8,3.685]
[1752328909952,54.21068486,2938.9,2938.8,4.6626]
[1752328910351,53.1216501,2938.9,2938.8,4.6626]
[1752328910652,53.38212476,2938.9,2938.8,4.6626]
[1752328911453,5.22114,2938.7,2938.6,2.7223]
[1752328911652,10.34639405,2938.7,2938.6,4.8886]
[1752328911851,10.34639405,2938.7,2938.6,6.4073]
[1752328912445,9.51797476,2938.7,2938.6,6.4073]
[1752328913154,3.88814,2938.7,2938.6,7.3849]
[1752328913453,3.2078,2938.7,2938.6,4.6626]
[1752328913643,3.88814,2938.7,2938.6,4.6626]
[1752328913842,4.03605853,2938.7,2938.6,4.6626]
[1752328914245,4.71639853,2938.7,2938.6,4.6626]
[1752328915456,5.6403,2938.7,2938.6,4.6626]
[1752328915754,6.32064,2938.7,2938.6,4.6626]
[1752328917251,7.40967476,2938.7,2938.6,4.6626]
[1752328917454,9.51797476,2938.7,2938.6,3.685]
[1752328917654,9.51797476,2938.7,2938.6,4.6626]
[1752328918856,7.40967476,2938.7,2938.6,4.6626]
[1752328919758,9.51797476,2938.7,2938.6,4.6626]
[1752328919950,9.51797476,2938.7,2938.6,3.685]
[1752328920154,5.22118,2938.5,2938.4,10.0652]
[1752328920352,6.31021476,2938.5,2938.4,8.5465]
[1752328920553,6.31021476,2938.5,2938.4,3.5733]
[1752328921355,6.31021476,2938.5,2938.4,2.8204]
[1752328921658,6.31021476,2938.5,2938.4,2.7225]
[1752328921851,6.31021476,2938.5,2938.4,4.2412]
[1752328922055,29.83621476,2938.5,2938.4,6.4075]
[1752328922253,30.66440703,2938.5,2938.4,2.7225]
[1752328922959,3.11288,2938.5,2938.4,7.3851]
[1752328923156,24.20738,2938.5,2938.4,7.3851]
[1752328923357,26.28671476,2938.5,2938.4,7.3851]
[1752328923556,27.72891476,2938.5,2938.4,7.3851]
[1752328923963,23.527,2938.5,2938.4,7.3851]
[1752328924261,3.2078,2939.0,2938.9,1.5187]
[1752328924458,27.55926508,2939.0,2938.9,4.6626]
[1752328925054,26.02203508,2939.0,2938.9,4.6626]
[1752328925258,25.34176508,2939.0,2938.9,4.6626]
[1752328925450,26.02203508,2939.0,2938.9,4.6626]
[1752328925655,25.34176508,2939.0,2938.9,4.6626]
[1752328926259,27.46423508,2939.0,2938.9,4.6626]
[1752328926554,3.11282,2938.8,2938.7,4.6626]
[1752328926759,5.02831984,2938.8,2938.7,4.6626]
[1752328930060,4.20185476,2938.8,2938.7,4.6626]
[1752328932366,5.22116,2938.6,2938.5,4.2423]
[1752328932567,33.03599476,2938.6,2938.5,4.2423]
[1752328932769,33.03599476,2938.6,2938.5,3.685]
[1752328933068,33.03599476,2938.6,2938.5,4.6626]